[Event "*** SCC Grand Prix: Titled Tuesday Blitz"]
[Site "Chess.com"]
[Date "2020.06.09"]
[Round "10"]
[White "SCIM"]
[Black "attack2mateU"]
[Result "1-0"]
[WhiteElo "2564"]
[BlackElo "2688"]
[TimeControl "180+1"]
[EndTime "10:57:40 PDT"]
[Termination "SCIM won by resignation"]

1. d4 {[%clk 0:02:30.8]} 1... Nf6 {[%clk 0:02:58.7]} 2. c4 {[%clk 0:02:28.1]}
2... g6 {[%clk 0:02:58.9]} 3. Nc3 {[%clk 0:02:27.5]} 3... d5 {[%clk 0:02:59]} 4.
cxd5 {[%clk 0:02:27.1]} 4... Nxd5 {[%clk 0:02:59.6]} 5. e4 {[%clk 0:02:27.7]}
5... Nxc3 {[%clk 0:02:59.4]} 6. bxc3 {[%clk 0:02:28.6]} 6... Bg7 {[%clk
0:02:59.3]} 7. Bc4 {[%clk 0:02:28.6]} 7... c5 {[%clk 0:02:58.8]} 8. Ne2 {[%clk
0:02:21.4]} 8... Nc6 {[%clk 0:02:58.9]} 9. Be3 {[%clk 0:02:20.3]} 9... O-O
{[%clk 0:02:58.5]} 10. O-O {[%clk 0:02:15.4]} 10... b6 {[%clk 0:02:56.9]} 11.
dxc5 {[%clk 0:02:14.6]} 11... Qc7 {[%clk 0:02:55.5]} 12. Nd4 {[%clk 0:02:13.5]}
12... Ne5 {[%clk 0:02:52.4]} 13. Nb5 {[%clk 0:02:11.9]} 13... Qb8 {[%clk
0:02:52]} 14. Be2 {[%clk 0:02:12.5]} 14... bxc5 {[%clk 0:02:16.6]} 15. Rb1
{[%clk 0:02:11.7]} 15... a6 {[%clk 0:02:11.7]} 16. Na3 {[%clk 0:02:10.9]} 16...
Qc7 {[%clk 0:02:09.9]} 17. f4 {[%clk 0:02:11.2]} 17... Rd8 {[%clk 0:02:02.8]}
18. Qc2 {[%clk 0:02:06.6]} 18... Nd7 {[%clk 0:01:16.7]} 19. Nc4 {[%clk
0:01:58.7]} 19... Bb7 {[%clk 0:01:14.2]} 20. Bf3 {[%clk 0:01:57.8]} 20... Bc6
{[%clk 0:01:12.8]} 21. e5 {[%clk 0:01:45]} 21... Bxf3 {[%clk 0:00:58.7]} 22.
Rxf3 {[%clk 0:01:45.9]} 22... Rab8 {[%clk 0:00:58.6]} 23. Rff1 {[%clk 0:01:45]}
23... Nb6 {[%clk 0:00:50.6]} 24. Nxb6 {[%clk 0:01:39.1]} 24... Rxb6 {[%clk
0:00:51.5]} 25. Rxb6 {[%clk 0:01:38.9]} 25... Qxb6 {[%clk 0:00:51.3]} 26. Rd1
{[%clk 0:01:39.5]} 26... Rxd1+ {[%clk 0:00:41.4]} 27. Qxd1 {[%clk 0:01:40.4]}
27... e6 {[%clk 0:00:41.2]} 28. h3 {[%clk 0:01:34.8]} 28... Bf8 {[%clk
0:00:37.5]} 29. c4 {[%clk 0:01:29.9]} 29... h5 {[%clk 0:00:29.5]} 30. Kh2 {[%clk
0:01:27.9]} 30... Qc6 {[%clk 0:00:28.3]} 31. Qd8 {[%clk 0:01:10.6]} 31... Qe4
{[%clk 0:00:19.8]} 32. Bxc5 {[%clk 0:01:09.8]} 32... Qxf4+ {[%clk 0:00:20.2]}
33. g3 {[%clk 0:01:10.1]} 33... Qh6 {[%clk 0:00:13.3]} 34. Be7 {[%clk
0:01:00.4]} 34... h4 {[%clk 0:00:11.3]} 35. Qxf8+ {[%clk 0:00:36.2]} 35... Qxf8
{[%clk 0:00:11.3]} 36. Bxf8 {[%clk 0:00:37.1]} 36... Kxf8 {[%clk 0:00:08.8]} 37.
gxh4 {[%clk 0:00:36.1]} 37... Ke7 {[%clk 0:00:09.3]} 38. Kg3 {[%clk 0:00:36.6]}
38... f5 {[%clk 0:00:02.3]} 39. exf6+ {[%clk 0:00:26.9]} 39... Kxf6 {[%clk
0:00:03.2]} 40. Kf4 {[%clk 0:00:27.2]} 40... Ke7 {[%clk 0:00:03.1]} 41. Ke5
{[%clk 0:00:26.4]} 41... Kd7 {[%clk 0:00:03.1]} 42. c5 {[%clk 0:00:25.1]} 42...
a5 {[%clk 0:00:02.2]} 43. c6+ {[%clk 0:00:21.7]} 43... Kxc6 {[%clk 0:00:02.3]}
44. Kxe6 {[%clk 0:00:22.6]} 44... Kb5 {[%clk 0:00:01.1]} 45. Kf6 {[%clk
0:00:23]} 45... Kb4 {[%clk 0:00:01.7]} 46. Kxg6 {[%clk 0:00:23.7]} 46... Ka3
{[%clk 0:00:02.6]} 47. h5 {[%clk 0:00:24.4]} 47... Kxa2 {[%clk 0:00:03.5]} 48.
h6 {[%clk 0:00:25.3]} 48... a4 {[%clk 0:00:04.2]} 49. h7 {[%clk 0:00:25.6]} 1-0

[Event "*** SCC Grand Prix: Titled Tuesday Blitz"]
[Site "Chess.com"]
[Date "2020.06.09"]
[Round "10"]
[White "dosto07"]
[Black "Julianos82"]
[Result "0-1"]
[WhiteElo "2155"]
[BlackElo "2391"]
[TimeControl "180+1"]
[EndTime "10:57:44 PDT"]
[Termination "Julianos82 won on time"]

1. e4 {[%clk 0:03:00.9]} 1... c5 {[%clk 0:02:59.6]} 2. Nf3 {[%clk 0:02:59.8]}
2... b6 {[%clk 0:02:59.9]} 3. d4 {[%clk 0:02:54.1]} 3... cxd4 {[%clk 0:03:00.8]}
4. Nxd4 {[%clk 0:02:52]} 4... Bb7 {[%clk 0:03:01]} 5. Nc3 {[%clk 0:02:51.9]}
5... a6 {[%clk 0:03:01.1]} 6. Bd3 {[%clk 0:02:50.5]} 6... e6 {[%clk 0:02:59.6]}
7. O-O {[%clk 0:02:49.2]} 7... Qc7 {[%clk 0:02:59.3]} 8. Be3 {[%clk 0:02:30]}
8... Nf6 {[%clk 0:02:52.5]} 9. a4 {[%clk 0:02:27.4]} 9... h5 {[%clk 0:02:46.6]}
10. h3 {[%clk 0:02:12.9]} 10... Bc5 {[%clk 0:02:34]} 11. Qe2 {[%clk 0:01:59.1]}
11... Nc6 {[%clk 0:02:20.8]} 12. Nxc6 {[%clk 0:01:52.6]} 12... Qxc6 {[%clk
0:02:13.7]} 13. Bxc5 {[%clk 0:01:49.3]} 13... bxc5 {[%clk 0:02:12.1]} 14. f4
{[%clk 0:01:40]} 14... c4 {[%clk 0:01:49.7]} 15. Bxc4 {[%clk 0:01:36.9]} 15...
Nxe4 {[%clk 0:01:49.7]} 16. Nxe4 {[%clk 0:01:36.8]} 16... Qxe4 {[%clk
0:01:50.4]} 17. Qxe4 {[%clk 0:01:33.2]} 17... Bxe4 {[%clk 0:01:51.3]} 18. c3
{[%clk 0:01:26.4]} 18... d5 {[%clk 0:01:48.6]} 19. Be2 {[%clk 0:01:25.8]} 19...
Ke7 {[%clk 0:01:39.3]} 20. Bf3 {[%clk 0:00:56.2]} 20... Bxf3 {[%clk 0:01:31.5]}
21. Rxf3 {[%clk 0:00:55.2]} 21... a5 {[%clk 0:01:26.3]} 22. Kf1 {[%clk
0:00:48.2]} 22... Rab8 {[%clk 0:01:17]} 23. Rf2 {[%clk 0:00:37.6]} 23... Rb3
{[%clk 0:01:14.2]} 24. Rd1 {[%clk 0:00:30.9]} 24... Rhb8 {[%clk 0:01:10.9]} 25.
Rdd2 {[%clk 0:00:30.3]} 25... g6 {[%clk 0:01:04.5]} 26. g4 {[%clk 0:00:29.3]}
26... hxg4 {[%clk 0:01:05.4]} 27. hxg4 {[%clk 0:00:29.3]} 27... Kd6 {[%clk
0:00:56]} 28. Ke1 {[%clk 0:00:29.3]} 28... R3b7 {[%clk 0:00:46.6]} 29. Kd1
{[%clk 0:00:24.9]} 29... g5 {[%clk 0:00:40.9]} 30. fxg5 {[%clk 0:00:21.6]} 30...
Rg8 {[%clk 0:00:40.8]} 31. Kc2 {[%clk 0:00:12.4]} 31... Rxg5 {[%clk 0:00:40.6]}
32. b3 {[%clk 0:00:08.2]} 32... Rxg4 {[%clk 0:00:38.5]} 33. Rf6 {[%clk
0:00:06.6]} 33... Rg6 {[%clk 0:00:34.5]} 34. Rxg6 {[%clk 0:00:04.9]} 34... fxg6
{[%clk 0:00:35.4]} 35. Rg2 {[%clk 0:00:05.2]} 35... Rg7 {[%clk 0:00:34.9]} 36.
b4 {[%clk 0:00:05.2]} 36... axb4 {[%clk 0:00:34.5]} 37. cxb4 {[%clk 0:00:05.2]}
37... g5 {[%clk 0:00:33.3]} 38. a5 {[%clk 0:00:04.9]} 38... g4 {[%clk
0:00:33.6]} 39. Kc3 {[%clk 0:00:05]} 39... g3 {[%clk 0:00:34]} 40. b5 {[%clk
0:00:05]} 40... Kc5 {[%clk 0:00:33.8]} 41. b6 {[%clk 0:00:05.2]} 41... Kc6
{[%clk 0:00:30.7]} 42. Kd4 {[%clk 0:00:05.2]} 42... Rg5 {[%clk 0:00:29.9]} 43.
Ke3 {[%clk 0:00:03]} 43... Kb7 {[%clk 0:00:22.5]} 44. Kf3 {[%clk 0:00:02.4]}
44... d4 {[%clk 0:00:23]} 45. Rxg3 {[%clk 0:00:02.3]} 45... Rxa5 {[%clk
0:00:23.2]} 0-1

[Event "*** SCC Grand Prix: Titled Tuesday Blitz"]
[Site "Chess.com"]
[Date "2020.06.09"]
[Round "10"]
[White "Bathory44"]
[Black "praveenb2002"]
[Result "1/2-1/2"]
[WhiteElo "2600"]
[BlackElo "2761"]
[TimeControl "180+1"]
[EndTime "10:57:46 PDT"]
[Termination "Game drawn by repetition"]

1. e4 {[%clk 0:03:00.9]} 1... c6 {[%clk 0:02:59.8]} 2. c4 {[%clk 0:03:00.5]}
2... d5 {[%clk 0:03:00.6]} 3. cxd5 {[%clk 0:03:01.4]} 3... cxd5 {[%clk
0:03:00.5]} 4. exd5 {[%clk 0:03:02]} 4... Nf6 {[%clk 0:03:01.1]} 5. Nc3 {[%clk
0:03:02.2]} 5... Nxd5 {[%clk 0:03:00.7]} 6. Nf3 {[%clk 0:03:02]} 6... Nc6 {[%clk
0:02:56.1]} 7. Bb5 {[%clk 0:03:01.8]} 7... e6 {[%clk 0:02:53.6]} 8. O-O {[%clk
0:03:01.2]} 8... Be7 {[%clk 0:02:53.9]} 9. d4 {[%clk 0:03:01]} 9... O-O {[%clk
0:02:52.9]} 10. Re1 {[%clk 0:03:01]} 10... Bd7 {[%clk 0:02:47.6]} 11. a3 {[%clk
0:02:57.9]} 11... Rc8 {[%clk 0:02:46.7]} 12. Nxd5 {[%clk 0:02:52.7]} 12... exd5
{[%clk 0:02:46.5]} 13. Bxc6 {[%clk 0:02:38.4]} 13... Bxc6 {[%clk 0:02:38.4]} 14.
Ne5 {[%clk 0:02:37.4]} 14... Bf6 {[%clk 0:02:37.8]} 15. Bf4 {[%clk 0:02:36.3]}
15... Qb6 {[%clk 0:02:33.4]} 16. Qd2 {[%clk 0:02:35.5]} 16... Ba4 {[%clk
0:02:24.9]} 17. Rac1 {[%clk 0:02:34.3]} 17... h6 {[%clk 0:02:24.1]} 18. h3
{[%clk 0:02:32.5]} 18... Rfe8 {[%clk 0:02:18.7]} 19. Rc3 {[%clk 0:02:29]} 19...
Rxc3 {[%clk 0:01:59.8]} 20. Qxc3 {[%clk 0:02:25.2]} 20... Qe6 {[%clk 0:01:59.1]}
21. Qa5 {[%clk 0:01:55.7]} 21... Bc6 {[%clk 0:01:10.9]} 22. Qxa7 {[%clk
0:01:54.5]} 22... Bxe5 {[%clk 0:01:10.9]} 23. Rxe5 {[%clk 0:01:42.1]} 23... Qd7
{[%clk 0:00:57.4]} 24. Rxe8+ {[%clk 0:01:32.7]} 24... Qxe8 {[%clk 0:00:58.3]}
25. Qb8 {[%clk 0:01:32.8]} 25... Qxb8 {[%clk 0:00:57.5]} 26. Bxb8 {[%clk
0:01:33.7]} 26... Kf8 {[%clk 0:00:55.6]} 27. f3 {[%clk 0:01:33.8]} 27... Ke7
{[%clk 0:00:55.8]} 28. Kf2 {[%clk 0:01:33.5]} 28... Bb5 {[%clk 0:00:55.3]} 29.
h4 {[%clk 0:01:31.6]} 29... Ke6 {[%clk 0:00:54.7]} 30. Ke3 {[%clk 0:01:28.2]}
30... g6 {[%clk 0:00:52]} 31. Bf4 {[%clk 0:01:23.5]} 31... h5 {[%clk 0:00:51.8]}
32. g4 {[%clk 0:01:14.8]} 32... Bf1 {[%clk 0:00:48.5]} 33. gxh5 {[%clk
0:01:13.6]} 33... gxh5 {[%clk 0:00:49.4]} 34. b3 {[%clk 0:01:09.1]} 34... Kf5
{[%clk 0:00:46.4]} 35. a4 {[%clk 0:01:06.4]} 35... Ba6 {[%clk 0:00:44]} 36. Bc7
{[%clk 0:01:03.7]} 36... Bf1 {[%clk 0:00:42.8]} 37. b4 {[%clk 0:01:02.6]} 37...
Bc4 {[%clk 0:00:42.4]} 38. b5 {[%clk 0:00:59.6]} 38... Bb3 {[%clk 0:00:29.3]}
39. a5 {[%clk 0:00:58.6]} 39... Ba4 {[%clk 0:00:25.2]} 40. a6 {[%clk 0:00:53.5]}
40... bxa6 {[%clk 0:00:23.8]} 41. bxa6 {[%clk 0:00:53.6]} 41... Bb5 {[%clk
0:00:23.9]} 42. a7 {[%clk 0:00:53.5]} 42... Bc6 {[%clk 0:00:24.4]} 43. Kd2
{[%clk 0:00:52.6]} 43... Ke6 {[%clk 0:00:19.7]} 44. Bb8 {[%clk 0:00:52.5]} 44...
Ba8 {[%clk 0:00:19.5]} 45. Ke3 {[%clk 0:00:51.6]} 45... Kf5 {[%clk 0:00:15.9]}
46. Kd3 {[%clk 0:00:52.1]} 46... Bb7 {[%clk 0:00:14]} 47. Kc3 {[%clk 0:00:51.6]}
47... Ke6 {[%clk 0:00:14.1]} 48. Kb4 {[%clk 0:00:51.6]} 48... Kd7 {[%clk
0:00:14.3]} 49. Kc5 {[%clk 0:00:51.7]} 49... Bc6 {[%clk 0:00:14.3]} 50. Bg3
{[%clk 0:00:49.8]} 50... Ba8 {[%clk 0:00:13.9]} 51. Kb6 {[%clk 0:00:50]} 51...
Bc6 {[%clk 0:00:14.2]} 52. f4 {[%clk 0:00:35.7]} 52... f5 {[%clk 0:00:13.9]} 53.
Be1 {[%clk 0:00:34.3]} 53... Ba8 {[%clk 0:00:14]} 54. Ba5 {[%clk 0:00:34]} 54...
Bc6 {[%clk 0:00:14.5]} 55. Kc5 {[%clk 0:00:32.5]} 55... Ba8 {[%clk 0:00:14.8]}
56. Kb6 {[%clk 0:00:31]} 56... Bc6 {[%clk 0:00:15.2]} 57. Kc5 {[%clk 0:00:31.2]}
57... Ba8 {[%clk 0:00:15.6]} 58. Kb6 {[%clk 0:00:31.5]} 1/2-1/2

[Event "*** SCC Grand Prix: Titled Tuesday Blitz"]
[Site "Chess.com"]
[Date "2020.06.09"]
[Round "10"]
[White "Twitch_ElhamBlitz05"]
[Black "Guenplen"]
[Result "0-1"]
[WhiteElo "2746"]
[BlackElo "2907"]
[TimeControl "180+1"]
[EndTime "10:57:54 PDT"]
[Termination "Guenplen won by resignation"]

1. e4 {[%clk 0:03:00.9]} 1... c5 {[%clk 0:02:59.6]} 2. Nf3 {[%clk 0:03:00.3]}
2... e6 {[%clk 0:03:00]} 3. c3 {[%clk 0:03:00.1]} 3... d5 {[%clk 0:02:59.5]} 4.
exd5 {[%clk 0:03:00.4]} 4... exd5 {[%clk 0:03:00.4]} 5. d4 {[%clk 0:03:01.1]}
5... a6 {[%clk 0:03:00.9]} 6. Be2 {[%clk 0:03:00.3]} 6... c4 {[%clk 0:02:58.1]}
7. O-O {[%clk 0:03:00.1]} 7... Bd6 {[%clk 0:02:58.3]} 8. Re1 {[%clk 0:03:00.4]}
8... Ne7 {[%clk 0:02:58.2]} 9. Nbd2 {[%clk 0:02:56.9]} 9... Nbc6 {[%clk
0:02:57.7]} 10. b3 {[%clk 0:02:51.1]} 10... cxb3 {[%clk 0:02:56]} 11. axb3
{[%clk 0:02:52]} 11... O-O {[%clk 0:02:56.1]} 12. Nf1 {[%clk 0:02:52.2]} 12...
Ng6 {[%clk 0:02:29.8]} 13. Ng3 {[%clk 0:02:51.4]} 13... h6 {[%clk 0:02:24.8]}
14. Bd3 {[%clk 0:02:49.7]} 14... Bg4 {[%clk 0:02:18.2]} 15. Be3 {[%clk
0:02:29.4]} 15... Qf6 {[%clk 0:02:05.5]} 16. Be2 {[%clk 0:02:27.2]} 16... Rfe8
{[%clk 0:02:03.5]} 17. h3 {[%clk 0:02:11]} 17... Rxe3 {[%clk 0:01:59.1]} 18.
hxg4 {[%clk 0:02:03.5]} 18... Bxg3 {[%clk 0:01:40.3]} 19. fxe3 {[%clk
0:02:03.3]} 19... Bxe1 {[%clk 0:01:40.9]} 20. Nxe1 {[%clk 0:01:57.2]} 20... Re8
{[%clk 0:01:39.7]} 21. Nc2 {[%clk 0:01:56.9]} 21... Qg5 {[%clk 0:01:18.2]} 22.
Bf3 {[%clk 0:01:44.1]} 22... Nh4 {[%clk 0:01:11.5]} 23. c4 {[%clk 0:01:26.2]}
23... Ne7 {[%clk 0:01:09.2]} 24. Ra5 {[%clk 0:01:17.6]} 24... b5 {[%clk
0:00:46.4]} 25. cxb5 {[%clk 0:01:08.2]} 25... axb5 {[%clk 0:00:47.3]} 26. Rxb5
{[%clk 0:01:08.4]} 26... Rc8 {[%clk 0:00:44.5]} 27. Rc5 {[%clk 0:01:01.8]} 27...
Ra8 {[%clk 0:00:20.3]} 28. b4 {[%clk 0:00:58.1]} 28... Ra2 {[%clk 0:00:17.2]}
29. Qb1 {[%clk 0:00:34]} 29... Ra6 {[%clk 0:00:16.9]} 30. Qf1 {[%clk 0:00:29.4]}
30... Rf6 {[%clk 0:00:16.2]} 31. Qe2 {[%clk 0:00:19.3]} 31... h5 {[%clk
0:00:16.1]} 32. Qd3 {[%clk 0:00:05.6]} 32... Nxf3+ {[%clk 0:00:11.6]} 33. gxf3
{[%clk 0:00:06.5]} 33... hxg4 {[%clk 0:00:11.9]} 34. Ne1 {[%clk 0:00:07.4]}
34... gxf3+ {[%clk 0:00:11.8]} 35. Kf1 {[%clk 0:00:05.7]} 35... Nf5 {[%clk
0:00:07.3]} 36. Rc8+ {[%clk 0:00:04.5]} 36... Kh7 {[%clk 0:00:07.4]} 37. Nxf3
{[%clk 0:00:04.5]} 37... Qg3 {[%clk 0:00:07.5]} 38. Qe2 {[%clk 0:00:04.6]} 38...
Nxe3+ {[%clk 0:00:05.5]} 39. Qxe3 {[%clk 0:00:05.5]} 39... Rxf3+ {[%clk
0:00:05.6]} 40. Qxf3 {[%clk 0:00:06.2]} 40... Qxf3+ {[%clk 0:00:06.5]} 41. Kg1
{[%clk 0:00:07.1]} 41... Qe3+ {[%clk 0:00:06.8]} 42. Kh1 {[%clk 0:00:06.4]}
42... Qh3+ {[%clk 0:00:06.7]} 0-1

[Event "*** SCC Grand Prix: Titled Tuesday Blitz"]
[Site "Chess.com"]
[Date "2020.06.09"]
[Round "10"]
[White "Andreikka"]
[Black "giantslayer83"]
[Result "1-0"]
[WhiteElo "2936"]
[BlackElo "2758"]
[TimeControl "180+1"]
[EndTime "10:57:58 PDT"]
[Termination "Andreikka won by resignation"]

1. c4 {[%clk 0:03:00.9]} 1... e6 {[%clk 0:02:59.1]} 2. Nc3 {[%clk 0:03:00.2]}
2... d5 {[%clk 0:02:59.2]} 3. d4 {[%clk 0:02:59.7]} 3... Nf6 {[%clk 0:02:57.9]}
4. cxd5 {[%clk 0:02:58.6]} 4... exd5 {[%clk 0:02:58]} 5. Bg5 {[%clk 0:02:58.6]}
5... c6 {[%clk 0:02:58.5]} 6. e3 {[%clk 0:02:58.5]} 6... Be7 {[%clk 0:02:58.2]}
7. Bd3 {[%clk 0:02:58.1]} 7... Nbd7 {[%clk 0:02:55]} 8. Qc2 {[%clk 0:02:57.6]}
8... Nh5 {[%clk 0:02:50.9]} 9. Bxe7 {[%clk 0:02:54.6]} 9... Qxe7 {[%clk
0:02:51.8]} 10. Nge2 {[%clk 0:02:55]} 10... g6 {[%clk 0:02:39.9]} 11. O-O-O
{[%clk 0:02:53.7]} 11... Nb6 {[%clk 0:02:38.2]} 12. Rhe1 {[%clk 0:02:51.6]}
12... Be6 {[%clk 0:02:34.6]} 13. f3 {[%clk 0:02:44.5]} 13... O-O-O {[%clk
0:02:32.2]} 14. Kb1 {[%clk 0:02:44.5]} 14... Kb8 {[%clk 0:02:32]} 15. Nc1 {[%clk
0:02:41.8]} 15... f5 {[%clk 0:02:27.1]} 16. Nb3 {[%clk 0:02:41.5]} 16... Nf6
{[%clk 0:02:25.5]} 17. h3 {[%clk 0:02:35.8]} 17... h5 {[%clk 0:02:17.6]} 18. h4
{[%clk 0:02:36.2]} 18... Rhe8 {[%clk 0:02:15.6]} 19. Ne2 {[%clk 0:02:32.9]}
19... Nfd7 {[%clk 0:02:08.9]} 20. Nf4 {[%clk 0:02:31.4]} 20... Bf7 {[%clk
0:02:08.6]} 21. Qf2 {[%clk 0:02:29.6]} 21... Qd6 {[%clk 0:01:57.7]} 22. Rc1
{[%clk 0:02:14.4]} 22... Nc4 {[%clk 0:01:54.2]} 23. g3 {[%clk 0:02:03.7]} 23...
Re7 {[%clk 0:01:50.8]} 24. e4 {[%clk 0:02:01.9]} 24... fxe4 {[%clk 0:01:40.2]}
25. fxe4 {[%clk 0:02:01.9]} 25... Ndb6 {[%clk 0:01:13.4]} 26. e5 {[%clk
0:01:59.3]} 26... Qb4 {[%clk 0:01:13.3]} 27. Nc5 {[%clk 0:01:55.4]} 27... Rg8
{[%clk 0:00:43.7]} 28. Ka1 {[%clk 0:01:43.9]} 28... g5 {[%clk 0:00:31]} 29. hxg5
{[%clk 0:01:33.8]} 29... Rxg5 {[%clk 0:00:31.9]} 30. Re2 {[%clk 0:01:34.4]}
30... Ka8 {[%clk 0:00:27.4]} 31. Ng6 {[%clk 0:01:05.3]} 31... Bxg6 {[%clk
0:00:15]} 32. Bxg6 {[%clk 0:01:05.6]} 32... Rc7 {[%clk 0:00:11]} 33. Ne6 {[%clk
0:00:42.6]} 33... Rxg6 {[%clk 0:00:10.9]} 34. Nxc7+ {[%clk 0:00:42.6]} 34... Kb8
{[%clk 0:00:11.5]} 35. Qf7 {[%clk 0:00:41.9]} 35... Rxg3 {[%clk 0:00:11.4]} 36.
Ne6 {[%clk 0:00:35.4]} 36... a5 {[%clk 0:00:11.3]} 37. Nc5 {[%clk 0:00:30.6]}
37... Na4 {[%clk 0:00:07.8]} 38. Nxa4 {[%clk 0:00:22.4]} 38... Qxa4 {[%clk
0:00:08.7]} 39. e6 {[%clk 0:00:18.8]} 39... Ka7 {[%clk 0:00:07.4]} 40. e7 {[%clk
0:00:18.3]} 40... Rd3 {[%clk 0:00:05.3]} 41. e8=Q {[%clk 0:00:16.3]} 41... Rd1
{[%clk 0:00:05.3]} 42. Qf4 {[%clk 0:00:16.3]} 42... Rxc1+ {[%clk 0:00:02.8]} 43.
Qxc1 {[%clk 0:00:15.7]} 43... Qb5 {[%clk 0:00:03.3]} 44. Qe7 {[%clk 0:00:15.1]}
44... h4 {[%clk 0:00:03.1]} 45. Qc5+ {[%clk 0:00:14.9]} 1-0

[Event "*** SCC Grand Prix: Titled Tuesday Blitz"]
[Site "Chess.com"]
[Date "2020.06.09"]
[Round "10"]
[White "Savva09022009"]
[Black "YaWaleriy"]
[Result "1-0"]
[WhiteElo "2402"]
[BlackElo "2205"]
[TimeControl "180+1"]
[EndTime "10:58:03 PDT"]
[Termination "Savva09022009 won on time"]

1. d4 {[%clk 0:03:00.9]} 1... d5 {[%clk 0:02:59.5]} 2. Nc3 {[%clk 0:03:00.9]}
2... Nf6 {[%clk 0:02:58.2]} 3. Bf4 {[%clk 0:03:00.9]} 3... e6 {[%clk 0:02:57.3]}
4. e3 {[%clk 0:03:00.2]} 4... Bb4 {[%clk 0:02:55.8]} 5. Bd3 {[%clk 0:02:59.1]}
5... a6 {[%clk 0:02:54.3]} 6. Nf3 {[%clk 0:02:56.1]} 6... c5 {[%clk 0:02:53.8]}
7. a3 {[%clk 0:02:54]} 7... Ba5 {[%clk 0:02:52.4]} 8. O-O {[%clk 0:02:50.9]}
8... Nc6 {[%clk 0:02:48.7]} 9. dxc5 {[%clk 0:02:49.6]} 9... Bxc3 {[%clk
0:02:47.7]} 10. bxc3 {[%clk 0:02:50]} 10... Qa5 {[%clk 0:02:45.3]} 11. c4 {[%clk
0:02:47.3]} 11... Qxc5 {[%clk 0:02:44.2]} 12. cxd5 {[%clk 0:02:43.6]} 12... Nxd5
{[%clk 0:02:44]} 13. Bg3 {[%clk 0:02:42.8]} 13... b5 {[%clk 0:02:41]} 14. a4
{[%clk 0:02:40.5]} 14... b4 {[%clk 0:02:40.1]} 15. Be4 {[%clk 0:02:36.8]} 15...
Nc3 {[%clk 0:02:36.6]} 16. Bd6 {[%clk 0:02:31]} 16... Qb6 {[%clk 0:02:22.1]} 17.
Bxc6+ {[%clk 0:02:29.1]} 17... Qxc6 {[%clk 0:02:21.5]} 18. Qd3 {[%clk
0:02:27.2]} 18... a5 {[%clk 0:02:16.7]} 19. Ne5 {[%clk 0:02:24.9]} 19... Qd5
{[%clk 0:02:13.8]} 20. Qxd5 {[%clk 0:02:21.5]} 20... exd5 {[%clk 0:02:06.4]} 21.
Rfe1 {[%clk 0:02:13.6]} 21... Bd7 {[%clk 0:02:05]} 22. e4 {[%clk 0:02:09.5]}
22... dxe4 {[%clk 0:01:51.9]} 23. f3 {[%clk 0:02:08.5]} 23... f6 {[%clk
0:01:43.4]} 24. Nc4 {[%clk 0:02:01.4]} 24... Be6 {[%clk 0:01:32.7]} 25. Nb6
{[%clk 0:01:28.7]} 25... Ra6 {[%clk 0:01:29.1]} 26. Bc5 {[%clk 0:01:28.2]} 26...
Kf7 {[%clk 0:01:24.9]} 27. fxe4 {[%clk 0:01:27.2]} 27... Rb8 {[%clk 0:01:23.8]}
28. Nd5 {[%clk 0:01:24.9]} 28... Nxd5 {[%clk 0:01:06.8]} 29. exd5 {[%clk
0:01:23.6]} 29... Bxd5 {[%clk 0:01:06.9]} 30. Re7+ {[%clk 0:01:24]} 30... Kg6
{[%clk 0:01:06.9]} 31. Rd1 {[%clk 0:01:23.2]} 31... Bc6 {[%clk 0:00:55.4]} 32.
Rd6 {[%clk 0:01:22.1]} 32... Rc8 {[%clk 0:00:41.6]} 33. Bd4 {[%clk 0:01:13.1]}
33... Bb7 {[%clk 0:00:32.6]} 34. Rdd7 {[%clk 0:01:09.8]} 34... Bc6 {[%clk
0:00:27.5]} 35. Rxg7+ {[%clk 0:01:08.8]} 35... Kf5 {[%clk 0:00:28]} 36. Rd6
{[%clk 0:01:07.5]} 36... Bb7 {[%clk 0:00:24.8]} 37. Rdd7 {[%clk 0:01:02.8]}
37... Bc6 {[%clk 0:00:18.2]} 38. g4+ {[%clk 0:01:01.6]} 38... Kf4 {[%clk
0:00:17.1]} 39. Rdf7 {[%clk 0:00:44.6]} 39... Bxa4 {[%clk 0:00:15.3]} 40. Bxf6
{[%clk 0:00:43.8]} 40... Ke4 {[%clk 0:00:14.2]} 41. Re7+ {[%clk 0:00:42]} 41...
Kd5 {[%clk 0:00:12.4]} 42. Re5+ {[%clk 0:00:39.6]} 42... Kc4 {[%clk 0:00:11.3]}
43. Be7 {[%clk 0:00:33.2]} 43... Bxc2 {[%clk 0:00:09.5]} 44. h4 {[%clk
0:00:29.9]} 44... b3 {[%clk 0:00:05.7]} 45. Ba3 {[%clk 0:00:29.6]} 45... a4
{[%clk 0:00:04.5]} 46. Rd7 {[%clk 0:00:27.8]} 46... Rac6 {[%clk 0:00:03.7]} 47.
Re3 {[%clk 0:00:26.9]} 47... Kb5 {[%clk 0:00:02.5]} 48. Rb7+ {[%clk 0:00:23.3]}
48... Ka6 {[%clk 0:00:02.2]} 49. Rb4 {[%clk 0:00:23.4]} 49... Rc4 {[%clk
0:00:02.5]} 50. Re6+ {[%clk 0:00:23.1]} 1-0